bitfinex-derivatives/quotes_ETHF0:USTF0_20251229
["timestamp","ask_amount","ask_price","bid_price","bid_amount"]
[1767026494519,0.00511474,2932.1,2931.3,0.00511474]
[1767026497515,0.00511474,2932.1,2931.3,1.474e-05]
[1767026503322,0.17071,2931.8,2930.6,0.77569749]
[1767026503627,0.17071,2931.7,2930.6,0.77569749]
[1767026504125,1.95791139,2932.1,2930.6,0.77569749]
[1767026504322,1.95791139,2932.1,2931.1,0.00511474]
[1767026504727,40.8,2932.0,2930.6,0.77569749]
[1767026505430,0.17072,2931.5,2930.6,0.77569749]
[1767026507428,0.00511474,2932.1,2930.6,0.77569749]
[1767026507831,0.00511474,2932.1,2930.7,0.17077]
[1767026508025,0.00511474,2932.1,2930.7,4.53039108]
[1767026511342,0.00511474,2932.1,2930.8,5.187]
[1767026514945,0.00347236,2932.3,2930.8,5.187]
[1767026515149,0.00347236,2932.3,2930.9,6.39583921]
[1767026515546,0.00347236,2932.3,2930.9,6.56658921]
[1767026516249,0.00511474,2931.9,2931.3,0.00511474]
[1767026516452,0.00347236,2932.3,2931.3,0.00511474]
[1767026516752,0.00347236,2932.3,2930.7,4.25743005]
[1767026516951,0.00347236,2932.3,2930.6,5.96869749]
[1767026517454,0.17415236,2932.3,2930.6,5.96869749]
[1767026517956,0.00511474,2931.7,2931.2,0.00511474]
[1767026522754,0.00347236,2932.3,2931.2,0.00511474]
[1767026524855,0.00511474,2932.0,2931.2,0.00511474]
[1767026525756,0.00347236,2932.3,2931.2,0.00511474]
[1767026526562,0.00511474,2932.0,2931.2,0.00511474]
[1767026526755,0.17064,2932.9,2931.2,0.00511474]
[1767026526955,40.9706,2933.7,2931.3,4.52302418]
[1767026527460,0.1706,2933.7,2931.3,5.72468875]
[1767026527654,0.1706,2933.7,2931.3,4.52302418]
[1767026527956,0.17452945,2933.7,2931.7,0.17071]
[1767026528261,0.17452945,2933.7,2931.8,5.19]
[1767026528461,0.00392945,2933.7,2931.8,5.3607]
[1767026529147,0.00392945,2933.7,2931.8,9.76154633]
[1767026531856,0.00392945,2933.7,2931.9,0.1707]
[1767026532254,0.00392945,2933.7,2932.0,4.43006762]
[1767026534572,0.00392945,2933.7,2932.0,4.60075762]
[1767026534765,0.00392945,2933.7,2932.1,0.17069]
[1767026536963,0.00392945,2933.7,2932.2,5.19]
[1767026537573,0.00392945,2933.7,2932.2,5.36068]
[1767026537873,0.00392945,2933.7,2932.2,5.19]
[1767026538077,0.00392945,2933.7,2932.4,0.17067]
[1767026538271,0.00392945,2933.7,2932.8,0.00511474]
[1767026538569,0.00392945,2933.7,2932.8,0.00782779]
[1767026540369,40.97055,2934.5,2932.8,0.00782779]
[1767026541474,40.97389542,2934.5,2932.8,0.00782779]
[1767026545276,0.17389542,2934.5,2932.8,0.00782779]
[1767026546978,0.17056,2934.4,2932.8,0.00782779]
[1767026547179,0.17057,2934.2,2932.8,0.00782779]
[1767026548177,0.00334542,2934.5,2932.8,0.00782779]
[1767026548375,0.00334542,2934.5,2932.9,4.6742416]
[1767026550380,0.00334542,2934.5,2933.0,0.17063]
[1767026553177,0.00334542,2934.5,2933.1,5.181]
[1767026555688,0.00334542,2934.5,2933.0,0.17063]
[1767026555888,0.00334542,2934.5,2933.1,5.18]
[1767026565296,0.00334542,2934.5,2933.2,0.17062]
[1767026565496,4.542e-05,2934.5,2933.2,4.58130135]
[1767026568595,4.542e-05,2934.5,2933.3,1.35295352]
[1767026570403,4.542e-05,2934.5,2932.9,4.25743005]
[1767026570606,0.17058,2933.9,2932.8,0.00782779]
[1767026571611,4.542e-05,2934.5,2932.8,0.00782779]
[1767026571809,1.35295352,2934.4,2932.8,0.00782779]
[1767026572010,0.17056,2934.3,2932.8,0.00782779]
[1767026572213,40.97057,2934.2,2932.8,0.00782779]
[1767026572711,0.17057,2934.1,2932.8,0.00782779]
[1767026573010,0.17059,2933.9,2932.8,0.00782779]
[1767026573208,0.17059,2933.9,2932.0,2.731]
[1767026574311,0.00511474,2933.2,2932.7,0.00511474]
[1767026580621,0.17059,2933.8,2932.7,0.00511474]
[1767026582216,0.17059542,2934.5,2932.7,0.00511474]
[1767026585127,4.542e-05,2934.5,2932.7,0.00511474]
[1767026585430,0.17055,2934.4,2932.7,0.00511474]
[1767026588833,4.542e-05,2934.5,2932.7,0.17576474]
[1767026590736,0.17057,2934.2,2932.7,0.00511474]
[1767026590935,0.17058,2934.0,2932.7,0.00511474]
[1767026592444,0.17058,2933.9,2932.7,0.00511474]
[1767026598438,4.542e-05,2934.5,2932.7,0.00511474]
[1767026598633,0.17056,2934.4,2932.7,0.00511474]
[1767026602338,0.17056,2934.4,2932.7,0.17576474]
[1767026602639,0.17056,2934.4,2933.4,1.35329299]
[1767026602833,0.17056,2934.4,2933.1,1.35329299]
[1767026604539,0.17056,2934.4,2933.4,1.35329299]
[1767026604742,4.542e-05,2934.5,2933.4,1.35329299]
[1767026606544,4.542e-05,2934.5,2933.7,1.35329299]
[1767026608545,4.542e-05,2934.5,2934.0,1.35329299]
[1767026608845,0.17053,2934.9,2934.0,1.35329299]
[1767026609745,0.17436312,2934.9,2934.0,1.35329299]
[1767026613154,0.17436312,2934.9,2933.7,1.35329299]
[1767026613746,1.35329299,2934.8,2932.8,4.25743005]
[1767026614053,0.17054,2934.7,2933.2,1.35329299]
[1767026614241,0.17054,2934.7,2933.8,1.35329299]
[1767026616348,0.00383312,2934.9,2933.8,1.35329299]
[1767026618051,0.00383312,2934.9,2933.3,0.17062]
[1767026618347,0.17053,2934.8,2933.4,1.35329299]
[1767026620654,0.17053,2934.8,2933.7,1.35329299]
[1767026625862,0.00383312,2934.9,2933.3,5.158]
[1767026625863,0.00383312,2934.9,2934.0,1.35329299]
[1767026626356,0.00383312,2934.9,2933.7,1.35329299]
[1767026626558,0.00383312,2934.9,2933.7,6.50729299]
[1767026627658,0.00383312,2934.9,2934.0,1.35329299]
[1767026632159,0.00383312,2934.9,2933.7,6.50729299]
[1767026632356,0.00383312,2934.9,2933.5,0.1706]
[1767026632562,0.00383312,2934.9,2933.6,5.153]
[1767026636658,0.00383312,2934.9,2933.7,1.35329299]
[1767026636857,0.17052,2935.0,2934.3,1.35329299]
[1767026637058,0.17052,2935.0,2934.4,0.00511474]
[1767026637967,0.17424368,2935.0,2934.4,0.00905394]
[1767026640660,1.52753667,2935.0,2933.4,4.25743005]
[1767026640866,1.35329299,2934.7,2933.4,4.25743005]
[1767026641056,1.35329299,2934.7,2933.3,5.152]
[1767026641256,1.35329299,2934.7,2933.1,2.54275748]
[1767026641458,1.35329299,2934.7,2933.2,5.152]
[1767026641660,0.00511474,2934.2,2933.2,5.15561391]
[1767026641866,0.00511474,2934.2,2933.7,0.00511474]
[1767026642261,0.00511474,2934.2,2933.2,0.00361391]
[1767026643265,0.00511474,2934.2,2933.4,0.00511474]
[1767026655972,0.17053,2934.9,2933.4,0.00511474]
[1767026656467,40.97053,2934.9,2933.4,0.00511474]
[1767026657165,0.00511474,2934.4,2933.4,0.00511474]
[1767026657371,0.17053,2934.9,2933.4,0.00511474]
[1767026658476,0.00372368,2935.0,2933.7,1.35365994]
[1767026661381,2.368e-05,2935.0,2933.7,1.35365994]
[1767026662176,2.368e-05,2935.0,2934.1,1.35365994]
[1767026662475,2.368e-05,2935.0,2934.1,6.49865994]
[1767026670283,0.17048,2935.7,2934.1,6.49865994]
[1767026671182,0.17407168,2935.7,2934.1,6.49865994]
[1767026676585,0.00359168,2935.7,2934.1,6.66922994]
[1767026679781,0.00359168,2935.7,2934.1,6.49865994]
[1767026680081,0.00359168,2935.7,2934.2,4.48188186]
[1767026680478,0.00359168,2935.7,2934.3,5.154]
[1767026683381,0.17407168,2935.7,2934.3,5.154]
[1767026683882,0.17049,2935.5,2934.4,5.153]
[1767026684184,0.17051,2935.3,2933.9,5.153]
[1767026685578,1.35365994,2935.2,2933.9,5.153]
[1767026686685,0.00359168,2935.7,2933.9,5.153]
[1767026686894,0.94330365,2935.6,2933.9,5.153]
[1767026687090,0.00359168,2935.7,2933.9,5.153]
[1767026687289,1.35365994,2935.5,2933.9,5.153]
[1767026687490,0.17051,2935.2,2933.9,5.153]
[1767026689391,0.17051,2935.1,2933.9,5.153]
[1767026690184,1.35365994,2935.2,2933.4,0.00511474]
[1767026690388,0.17054,2934.6,2933.4,0.00511474]
[1767026703494,0.17056,2934.3,2933.4,0.00511474]
[1767026703796,0.17057,2934.2,2933.2,0.00361391]
[1767026704494,0.17053,2934.9,2933.2,1.35727385]
[1767026704696,0.17053,2934.9,2933.8,0.00511474]
[1767026705100,40.97049,2935.5,2933.8,0.00511474]
[1767026705302,0.17049,2935.5,2933.8,0.00511474]
[1767026708504,0.17049,2935.5,2934.1,1.35260891]
[1767026709596,0.17049,2935.5,2934.4,1.35260891]
[1767026711398,0.00359168,2935.7,2934.4,1.35260891]
[1767026711595,0.00359168,2935.7,2934.7,1.35260891]
[1767026711998,0.00359168,2935.7,2935.0,1.35260891]
[1767026712197,48.239,2936.6,2935.0,1.35260891]
[1767026712504,48.40943,2936.6,2935.5,0.00511474]
[1767026712907,0.17043,2936.6,2935.5,0.00511474]
[1767026713202,0.00433959,2936.6,2935.6,1.35260891]
[1767026713800,0.00433959,2936.6,2935.5,0.00828493]
[1767026713999,1.3569485,2936.6,2935.5,0.00828493]
[1767026715700,0.00433959,2936.6,2935.5,0.00828493]
[1767026718108,1.3569485,2936.6,2935.5,0.00828493]
[1767026718406,1.35260891,2936.3,2935.5,0.00828493]
[1767026718606,1.35260891,2936.0,2934.4,4.67581749]
[1767026718801,1.35260891,2936.0,2934.6,3.487]
[1767026719703,1.35260891,2936.0,2935.0,0.00511474]
[1767026719704,0.00511474,2935.6,2935.0,0.00511474]
[1767026725510,0.00511474,2935.6,2934.6,0.0041561]
[1767026726315,0.00511474,2935.6,2934.8,0.00511474]
[1767026727809,1.474e-05,2935.6,2934.8,0.00511474]
[1767026731220,0.00433959,2936.6,2934.8,0.00511474]
[1767026732216,0.00511474,2936.0,2934.8,0.00511474]
[1767026735320,0.00511474,2936.0,2934.8,3.05840505]
[1767026735720,0.00511474,2936.0,2934.8,3.22893505]
[1767026735910,0.00433959,2936.6,2934.9,4.33783836]
[1767026736226,0.17476959,2936.6,2934.8,3.22893505]
[1767026736921,0.17043,2936.5,2934.8,0.17564474]
[1767026738016,0.17044,2936.4,2934.8,0.00511474]
[1767026739530,0.17044,2936.4,2934.8,3.05840505]
[1767026742226,0.17044,2936.4,2934.9,3.05329031]
[1767026742923,0.00433959,2936.6,2935.2,3.05329031]
[1767026743332,7.451,2937.6,2934.8,1.95219929]
[1767026743333,0.17037,2937.6,2935.4,3.05329031]
[1767026743521,0.17038,2937.5,2935.5,8.19129031]
[1767026743720,0.17038,2937.4,2936.2,0.00511474]
[1767026744318,0.1731846,2937.4,2936.2,0.00511474]
[1767026747732,0.01096208,2936.8,2936.2,0.00511474]
[1767026748630,0.1731846,2937.4,2936.2,0.00511474]
[1767026749634,0.0028046,2937.4,2936.2,0.00511474]
[1767026750635,0.0028046,2937.4,2936.3,1.35056714]
[1767026750934,0.0028046,2937.4,2936.4,5.135]
[1767026751636,0.0028046,2937.4,2936.6,1.35056714]
[1767026751937,0.17035,2937.9,2936.6,1.35056714]
[1767026752735,0.17446204,2937.9,2936.6,1.35056714]
[1767026753133,0.00411204,2937.9,2936.9,1.35056714]
[1767026753331,0.00411204,2937.9,2936.9,1.35454426]
[1767026754443,0.00411204,2937.9,2936.9,0.00397712]
[1767026755243,8.19707667,2938.9,2936.9,0.00397712]
[1767026755448,0.76207667,2938.9,2936.9,0.00397712]
[1767026755835,40.8,2938.8,2936.9,0.00397712]
[1767026756440,40.97299138,2938.8,2936.9,0.00397712]
[1767026756639,40.97299138,2938.8,2937.0,2.95]
[1767026757237,0.00269138,2938.8,2937.2,0.17039]
[1767026757439,0.00269138,2938.8,2937.7,0.00510594]
[1767026761645,0.2294451,2940.3,2937.7,0.00510594]
[1767026761957,0.2294451,2940.3,2938.2,0.17033]
[1767026762140,0.17021,2940.3,2938.2,0.17033]
[1767026762339,0.17021,2940.3,2938.3,4.38667319]
[1767026762649,0.03339274,2940.0,2938.4,5.13]
[1767026763746,1.97745188,2940.0,2937.7,0.17547594]
[1767026763950,1.97745188,2940.0,2937.8,5.129]
[1767026763951,0.17027,2939.7,2937.8,5.129]
[1767026764542,0.03339274,2940.0,2937.9,6.33400114]
[1767026764747,0.03339274,2940.0,2937.9,6.50437114]
[1767026765343,0.03339274,2940.0,2938.0,0.17036]
[1767026765750,0.03339274,2940.0,2938.1,4.40559855]
[1767026766548,0.03339274,2940.0,2938.0,0.17036]
[1767026766949,0.03339274,2940.0,2938.1,5.129]
[1767026768444,0.20364274,2940.0,2938.1,5.129]
[1767026769044,0.20364274,2940.0,2938.2,4.44531539]
[1767026769454,0.17025,2939.9,2938.2,9.57331539]
[1767026769847,0.17025,2939.9,2938.2,5.128]
[1767026772545,0.03339274,2940.0,2937.7,0.00510594]
[1767026772747,0.17028,2939.4,2937.7,0.00510594]
[1767026773051,0.17029,2939.3,2937.7,0.00510594]
[1767026773948,0.03339274,2940.0,2937.7,0.00510594]
[1767026774148,0.1703,2939.2,2937.7,0.00510594]
[1767026775249,0.17026,2939.9,2937.7,0.00510594]
[1767026775445,0.17026,2939.8,2937.7,0.00510594]
[1767026778048,0.17026,2939.8,2937.8,4.3740994]
[1767026779456,0.17026,2939.8,2938.0,0.17036]
[1767026783861,0.17026,2939.8,2938.0,5.29236]
[1767026785763,0.9368772,2939.7,2938.0,5.29236]
[1767026786062,0.17026,2939.8,2938.0,5.29236]
[1767026786256,0.93735566,2939.7,2938.0,5.29236]
[1767026786454,0.17026,2939.8,2938.0,5.29236]
[1767026786655,0.93740835,2939.7,2938.0,5.29236]
[1767026786861,0.17026,2939.8,2938.0,5.29236]
[1767026787054,0.93739182,2939.7,2938.0,5.29236]
[1767026787255,0.17026,2939.8,2938.0,5.29236]
[1767026787456,0.93758489,2939.7,2938.0,5.29236]
[1767026787661,0.17026,2939.8,2938.0,5.29236]
[1767026787861,0.93760195,2939.7,2938.0,0.17036]
[1767026788062,0.17026,2939.8,2938.0,0.17036]
[1767026788259,0.93761899,2939.7,2938.0,0.17036]
[1767026788462,0.17026,2939.8,2938.0,0.17036]
[1767026788660,0.93766645,2939.7,2938.0,0.17036]
[1767026788861,0.17026,2939.8,2938.0,0.17036]
[1767026789060,0.93767906,2939.7,2938.0,0.17036]
[1767026789263,0.17026,2939.8,2938.0,0.17036]
[1767026789462,0.93777045,2939.7,2938.0,0.17036]
[1767026789664,0.17026,2939.8,2938.0,0.17036]
[1767026789863,0.93777457,2939.7,2938.0,0.17036]
[1767026790061,0.17026,2939.8,2938.0,0.17036]
[1767026794060,0.17028,2939.5,2937.7,0.00510594]
[1767026795568,0.17028,2939.5,2937.7,0.17548594]
[1767026795766,0.17029,2939.2,2937.7,0.00510594]
[1767026795967,2.2014602,2939.8,2937.7,0.00510594]
[1767026796166,0.1703,2939.1,2937.7,0.00510594]
[1767026797966,0.17031,2939.0,2937.7,0.00510594]
[1767026803377,0.17025,2939.6,2937.7,0.00510594]
[1767026803763,0.17027,2939.4,2937.7,0.00510594]
[1767026805070,6.315,2939.9,2937.7,0.00510594]
[1767026805267,3.58833259,2939.8,2937.7,0.00510594]
[1767026805474,0.17029,2939.0,2937.7,0.00510594]
[1767026805781,2.2014602,2939.8,2937.7,0.00510594]
[1767026806080,1.38675977,2939.7,2937.7,0.00510594]
[1767026806281,0.17028,2939.1,2937.7,0.00510594]
[1767026807881,2.2014602,2939.8,2937.7,0.00510594]
[1767026808076,0.1703,2938.9,2937.7,0.00510594]
[1767026809776,6.315,2939.7,2937.7,0.00510594]
[1767026809974,1.38548656,2939.6,2937.7,0.00510594]
[1767026810174,0.17031,2938.7,2937.7,0.00510594]
[1767026820382,0.17032,2938.4,2937.7,5.94e-06]
[1767026820584,0.17032,2938.4,2936.9,0.00397712]
[1767026821494,0.17032,2938.4,2937.4,0.00510594]
[1767026824295,0.17032,2938.4,2936.9,0.00397712]
[1767026824296,0.17035,2937.9,2936.9,0.00397712]
[1767026824498,0.17392905,2937.9,2936.0,3.05329031]
[1767026825390,0.17392905,2937.9,2936.7,0.00510594]
[1767026828099,0.17036,2937.8,2936.7,0.00510594]
[1767026831393,0.17036,2937.7,2936.7,0.00510594]
[1767026832603,0.17038,2937.5,2936.7,5.94e-06]
[1767026832804,0.17039,2937.3,2936.0,0.00254456]
[1767026833905,0.00510594,2936.9,2936.4,0.00510594]
[1767026834396,0.00357905,2937.9,2936.4,0.00510594]
[1767026834603,0.17392905,2937.9,2936.4,0.00510594]
[1767026835501,0.00510594,2937.4,2936.4,0.00510594]
[1767026837499,0.17548594,2937.4,2936.4,0.00510594]
[1767026837699,0.17039,2937.2,2936.4,0.00510594]
[1767026837898,0.17039,2937.2,2936.4,5.94e-06]
[1767026838099,0.17039,2937.2,2936.0,0.00254456]
[1767026839006,0.17039,2937.2,2936.3,0.00510594]
[1767026839294,1.94500974,2937.3,2936.0,4.456e-05]
[1767026839500,0.17042,2936.7,2934.9,2.693]
[1767026840400,0.17043,2936.6,2935.5,0.00510594]
[1767026842296,0.17044,2936.5,2935.5,0.00510594]
[1767026847810,0.17045,2936.3,2935.5,0.00510594]
[1767026848109,0.17046,2936.1,2934.9,0.00342215]
[1767026848900,0.00510594,2935.8,2935.2,0.00510594]
[1767026849105,0.00950588,2935.8,2935.2,0.00510594]
[1767026852511,0.17043,2936.6,2935.2,0.00510594]
[1767026852712,0.17043,2936.5,2935.2,0.00510594]
[1767026852911,0.17044,2936.4,2935.2,0.00510594]
[1767026853409,0.00510594,2936.1,2935.2,0.00510594]
[1767026860212,0.17041,2936.9,2935.2,0.00510594]
[1767026861224,0.00510594,2936.3,2935.2,0.00510594]
[1767026861408,0.17341923,2936.9,2935.2,0.00510594]
[1767026861613,0.00300923,2936.9,2935.4,0.17049]
[1767026861815,0.00300923,2936.9,2935.5,8.14929031]
[1767026862012,0.00300923,2936.9,2935.5,3.05329031]
[1767026862213,0.00300923,2936.9,2935.5,5.096]
[1767026862513,0.00510594,2936.5,2935.5,8.14929031]
[1767026862714,0.00510594,2936.5,2935.5,12.62864589]
[1767026862927,0.00300923,2936.9,2935.5,12.62864589]
[1767026863112,0.00300923,2936.9,2935.5,8.14929031]
[1767026863923,0.00507663,2936.5,2935.5,8.14929031]
[1767026864626,0.00300923,2936.9,2935.5,8.14929031]
[1767026865529,0.00300923,2936.9,2935.6,3.05329031]
[1767026866420,0.00300923,2936.9,2935.5,5.096]
[1767026866619,0.00300923,2936.9,2935.5,7.04100974]
[1767026867521,0.00300923,2936.9,2935.5,10.09430005]
[1767026870124,0.00300923,2936.9,2935.6,3.05329031]
[1767026872537,0.00300923,2936.9,2936.3,1.35062174]
[1767026873028,0.17035,2937.9,2936.3,1.35062174]
[1767026873227,0.17035,2937.9,2936.8,0.00510594]
[1767026874033,0.17311285,2937.9,2936.9,1.35062174]
[1767026874538,0.17311285,2937.9,2936.8,0.00510594]
[1767026874926,0.00276285,2937.9,2936.8,0.00510594]
[1767026875228,0.00276285,2937.9,2936.9,5.112]
[1767026877330,0.00276285,2937.9,2936.8,0.00510594]
[1767026877531,0.00276285,2937.9,2936.8,5.11710594]
[1767026878128,0.00276285,2937.9,2936.8,0.00510594]
[1767026884232,0.17031,2938.6,2936.8,0.00510594]
[1767026885230,0.17227905,2938.6,2936.8,0.00510594]
[1767026886234,0.00196905,2938.6,2936.8,0.00510594]
[1767026886431,0.17034,2938.1,2936.8,0.00510594]
[1767026888434,0.17035,2938.0,2936.8,0.00510594]
[1767026889541,0.17036,2937.8,2936.1,3.05329031]
[1767026889735,0.17037,2937.6,2936.1,5.107]
[1767026890835,0.00510593,2937.1,2936.6,0.00510594]
[1767026897440,0.00510593,2937.1,2935.8,3.05329031]
[1767026897738,0.00510593,2937.1,2935.9,5.104]
[1767026898541,0.00510593,2937.1,2936.2,0.00510594]
[1767026898736,0.17037,2937.6,2936.2,0.00510594]
[1767026899733,0.00510594,2937.2,2936.2,0.00510594]
[1767026903647,0.00510594,2937.2,2936.3,3.05329031]
[1767026904548,0.17034,2938.1,2936.3,3.05329031]
[1767026906446,6.315,2938.5,2936.3,3.05329031]
[1767026906447,0.17035,2937.9,2936.3,3.05329031]
[1767026910653,6.48532,2938.5,2936.3,3.05329031]
[1767026910855,6.48532,2938.5,2936.6,3.05329031]
[1767026911054,0.17032,2938.4,2936.6,3.05329031]
[1767026911743,0.17033,2938.3,2936.6,3.05329031]
[1767026911938,6.315,2938.5,2936.6,3.05329031]
[1767026912248,0.17035,2938.0,2936.7,5.114]
[1767026916552,0.17035,2937.9,2936.7,5.114]
[1767026921861,6.48532,2938.5,2936.7,8.16729031]
[1767026922057,6.48532,2938.5,2936.9,4.40366941]
[1767026922253,0.17032,2938.5,2936.9,4.40366941]
[1767026924466,0.17033,2938.3,2936.9,5.12]
[1767026926754,0.00196905,2938.6,2936.9,5.12]
[1767026926956,1.3503791,2937.9,2936.5,3.05329031]
[1767026927166,0.17039,2937.6,2936.3,5.123]
[1767026928365,40.8,2937.8,2936.2,0.00510594]
[1767026928562,0.17041,2937.2,2936.2,0.00510594]
[1767026928866,0.17041,2937.2,2935.9,3.05329031]
[1767026928867,0.17042,2937.0,2935.7,3.05329031]
[1767026929068,0.17042,2937.0,2935.5,8.17629031]
[1767026929462,0.17043,2936.9,2935.5,5.123]
[1767026929869,0.00510594,2936.5,2935.9,0.00510594]
[1767026930162,0.00707499,2936.5,2935.9,0.00510594]
[1767026930773,0.17043,2936.9,2935.9,0.00510594]
[1767026931074,0.17039,2937.6,2935.9,0.00510594]
[1767026931473,0.17039,2937.5,2935.9,0.00510594]
[1767026931662,0.1704,2937.4,2935.9,0.00510594]
[1767026931859,0.1704,2937.3,2935.9,0.00510594]
[1767026932067,40.8,2937.8,2935.9,5.12910594]
[1767026933069,0.17042,2937.1,2935.9,5.12910594]
[1767026933276,40.8,2937.8,2935.9,0.00510594]
[1767026933469,0.17042,2937.1,2935.9,0.00510594]
[1767026940285,0.17036,2937.8,2935.9,0.00510594]
[1767026940489,0.17036,2937.8,2935.9,0.17556594]
[1767026940684,0.17036,2937.8,2936.0,4.48630939]
[1767026940884,40.8,2938.7,2936.0,4.48630939]
[1767026941085,0.17036,2937.8,2936.0,4.48630939]
[1767026941487,2.134,2938.8,2936.0,4.48630939]
[1767026941694,40.8,2938.5,2936.1,5.122]
[1767026943292,0.17035,2937.9,2936.1,5.122]
[1767026943595,0.17037,2937.6,2936.2,5.121]
[1767026944295,0.17038,2937.5,2936.2,5.121]
[1767026946089,0.17038,2937.5,2936.0,3.05329031]
[1767026946292,0.17038,2937.5,2936.1,5.12]
[1767026947589,0.17034,2938.1,2936.1,5.12]
[1767026947784,0.17035,2938.0,2936.1,8.17329031]
[1767026947998,0.17035,2938.0,2936.2,3.05329031]
[1767026948201,0.17035,2938.0,2936.3,3.05329031]
[1767026948402,0.17035,2938.0,2936.4,3.05329031]
[1767026948700,0.17035,2938.0,2936.4,3.22373031]
[1767026949104,0.17035,2938.0,2936.5,3.05329031]
[1767026949500,2.17336585,2940.0,2936.5,3.05329031]
[1767026949694,19.415674,2945.3,2936.1,5.12]
[1767026949695,0.17012,2942.0,2939.0,2.20533544]
[1767026949896,0.17007,2942.8,2939.9,0.17023]
[1767026950195,2.9576402,2943.7,2940.2,0.00510594]
[1767026950196,0.17008,2942.6,2940.2,0.00510594]
[1767026950403,0.17008,2942.6,2940.3,5.124]
[1767026950696,0.17008,2942.6,2940.3,4.41473052]
[1767026951097,0.17008,2942.6,2940.4,5.123]
[1767026951496,0.17009,2942.4,2940.4,5.123]
[1767026951999,0.17009,2942.4,2940.5,5.122]
[1767026952703,0.1701,2942.3,2940.2,0.00510594]
[1767026953103,40.8,2942.9,2940.3,2.566]
[1767026953304,0.17012,2942.0,2940.3,2.566]
[1767026953898,40.8,2942.9,2940.3,2.566]
[1767026954098,2.20533544,2942.3,2940.2,0.00510594]
[1767026954299,0.17015,2941.4,2940.2,0.00510594]
[1767026955009,0.11095702,2941.4,2940.2,0.00510594]
[1767026955406,2.20533544,2942.3,2940.2,0.00510594]
[1767026955607,0.17015,2941.4,2940.2,0.00510594]
[1767026956098,0.17016,2941.3,2940.2,0.00510594]
[1767026956297,0.17016,2941.2,2939.5,0.106]
[1767026956499,0.17017,2941.0,2939.3,5.119]
[1767026956694,0.17017,2941.0,2939.0,0.00317658]
[1767026956901,0.17017,2941.0,2939.1,5.118]
[1767026957301,0.17017,2941.0,2939.2,5.118]
[1767026957501,0.00510594,2940.3,2939.8,0.00510594]
[1767026960603,0.00510594,2940.3,2939.1,5.116]
[1767026960903,0.00510594,2940.3,2939.0,5.11917658]
[1767026961506,0.00510594,2940.3,2939.4,0.00510594]
[1767026984128,0.17023,2940.1,2939.4,5.94e-06]
[1767026984320,0.17023,2940.1,2939.0,0.00317658]
[1767026984823,0.00510594,2940.3,2939.0,0.00317658]
[1767026985025,0.87625993,2940.2,2939.0,0.00317658]
[1767026985328,0.17024,2939.8,2939.0,0.00317658]
[1767026986324,0.17024,2939.8,2939.1,0.00510594]
[1767026991933,0.00510594,2940.3,2939.1,0.00510594]
[1767026993630,0.17531594,2940.3,2939.1,0.00510594]
[1767026994031,0.00510594,2940.3,2939.1,0.00510594]
[1767026998835,0.17019,2940.7,2939.1,0.00510594]
[1767026999027,0.17019,2940.7,2939.2,3.05329031]
[1767026999228,0.17019,2940.7,2939.3,5.1]
[1767026999930,0.00510594,2940.3,2939.3,5.1]
[1767027001828,0.00510594,2940.3,2939.2,3.05329031]
[1767027002233,0.00510594,2940.3,2939.1,3.05839625]
[1767027002934,0.00510594,2940.3,2939.2,5.106]
[1767027003325,0.00510594,2940.3,2939.1,3.05839625]
[1767027003529,0.17531594,2940.3,2939.1,0.00510594]
[1767027003832,0.00510594,2940.3,2939.1,0.00510594]
[1767027005032,0.17022,2940.1,2939.1,0.00510594]
[1767027005439,0.00510594,2940.3,2939.1,0.00510594]
[1767027006341,0.17022,2940.2,2939.1,0.00510594]
[1767027013539,0.00510594,2940.3,2939.1,0.00510594]
[1767027019245,0.00510594,2940.3,2939.1,3.05839625]
[1767027019448,0.00510594,2940.3,2939.1,0.00510594]
[1767027020543,0.00510594,2940.3,2939.2,0.425]
[1767027021346,0.00510594,2940.3,2939.3,3.47829031]
[1767027022438,0.00510594,2940.3,2939.3,0.425]
[1767027024648,0.00510594,2940.3,2939.3,5.531]
[1767027026257,0.00510594,2940.3,2939.3,5.106]
[1767027028366,0.00510594,2940.3,2939.2,0.425]
[1767027028655,0.00510594,2940.3,2939.3,5.109]
[1767027032662,0.17019,2940.7,2939.4,3.47829031]
[1767027033564,0.00510594,2940.3,2939.4,3.47829031]
[1767027036264,40.97016,2941.2,2939.4,3.47829031]
[1767027036467,40.97016,2941.2,2939.5,3.47829031]
[1767027036969,0.17016,2941.2,2939.7,3.05329031]
[1767027037162,0.00510594,2940.7,2939.7,3.05329031]
[1767027038668,0.00510594,2940.7,2939.6,3.05329031]
[1767027038869,0.00510594,2940.7,2939.7,3.05329031]
[1767027040567,0.00510594,2940.7,2939.6,3.05329031]
[1767027041367,0.00510594,2940.7,2939.7,3.05329031]
[1767027044668,5.94e-06,2940.7,2939.7,3.05329031]
[1767027044875,5.94e-06,2940.7,2939.8,3.05329031]
[1767027045076,5.94e-06,2940.7,2939.9,5.13]
[1767027046570,0.17016,2941.2,2939.9,6.47733644]
[1767027047478,40.8,2941.7,2939.9,6.47733644]
[1767027047679,40.8,2941.7,2939.9,9.53062675]
[1767027048084,0.17013,2941.8,2939.9,9.53062675]
[1767027048379,0.17013,2941.8,2940.0,3.05329031]
[1767027048578,0.17013,2941.8,2940.6,0.00510594]
[1767027048579,40.97013,2941.8,2940.6,0.00510594]
[1767027048774,40.97013,2941.8,2940.6,5.14010594]
[1767027049079,0.17013,2941.8,2940.6,5.14010594]
[1767027049380,0.17013,2941.7,2940.6,5.14010594]
[1767027052477,0.17015,2941.4,2940.6,0.00510594]
[1767027054880,40.8,2941.9,2940.6,0.00510594]
[1767027055174,0.17013,2941.8,2940.6,0.00510594]
[1767027055376,1.34733644,2942.4,2940.6,0.00510594]
[1767027055770,0.17013,2941.8,2940.6,0.00510594]
[1767027061088,0.17014,2941.6,2940.6,0.00510594]
[1767027066689,7.252,2942.2,2940.6,0.00510594]
[1767027067290,40.8,2942.1,2940.6,0.00510594]
[1767027067692,0.17014,2941.6,2940.6,0.00510594]
[1767027067992,0.17015,2941.5,2940.6,0.00510594]
[1767027069496,0.17015,2941.4,2940.3,0.425]
[1767027070290,0.00510594,2941.1,2940.6,0.00510594]
[1767027071388,0.17012,2942.0,2940.6,0.00510594]
[1767027071596,0.17012,2942.0,2940.6,0.43010594]
[1767027076098,0.17012,2942.0,2940.7,0.425]
[1767027078495,0.17012,2942.0,2940.9,1.34651697]
[1767027078704,0.17012,2942.0,2941.0,5.137]